[Event "Romanian-ch Youth Open U16 2024"]
[Site "Eforie Nord"]
[Date "2024.04.17"]
[Round "7.1"]
[White "Coicev, Matei-Andrei"]
[Black "Magold, Filip"]
[Result "1/2-1/2"]
[ECO "B30"]
[WhiteElo "2230"]
[BlackElo "2408"]
[Annotator "TA"]
[PlyCount "94"]
[EventDate "2024.04.10"]
[EventType "swiss"]
[EventCountry "ROU"]
[SourceTitle "playchess.com"]
[Source "ChessBase"]
[SourceQuality "1"]
[TimeControl "5400+30"]

{[%evp 9,94,0,0,-4,-1,0,-8,-2,9,0,-2,0,0,2,25,-52,-51,-81,-87,-64,-66,-164,-48,-67,-22,-9,-35,-35,51,0,-8,0,0,0,0,-32,-18,-48,0,-144,-131,-136,-152,-137,-137,-125,-132,-133,-134,-140,-152,-151,-147,-158,-145,-140,-94,-84,-23,-152,-147,-170,-167,-189,-192,-185,-191,-172,-141,-147,-146,-138,0,0,0,0,0,0,0,0,0,0,0,0,0,0,0]} 1. e4 {[%emt 0:00:06][%cal Be2e4,Be4e5][%mdl 32]} c5 {[%emt 0:00:22]} 2. Nf3 {[%emt 0:00:09]} Nc6 {[%emt 0:00:01]} 3. Bc4 {[%emt 0:00:16]} Nf6 {[%emt 0:00:10]} 4. e5 {[%emt 0:00:15]} Ng4 {[%emt 0:00:03]} 5. Bxf7+ {[%emt 0:00:20]} Kxf7 {[%emt 0:00:03]} 6. Ng5+ {[%emt 0:00:08]} Kg8 $1 {[%emt 0:00:02]} 7. Qxg4 {[%emt 0:00:07]} Nxe5 {[%emt 0:00:03]} 8. Qe4 {[%emt 0:00:11]} Nc6 {[%emt 0:10:56]} 9. Qf5 $1 {[%emt 0:02:57]} Qe8 {[%emt 0:00:39] Dodges Qf7+. With the idea ...h6.} 10. Qxc5 {[%emt 0:01:16]} e6 {[%emt 0:00:29]} 11. Qe3 {[%emt 0:04:48]} b6 {[%emt 0:06:55]} 12. c3 {[%emt 0:09:43]} (12. d3 $11) 12... Ba6 $15 {[%emt 0:03:23][%mdl 1024] Black has compensation.} 13. d4 {[%emt 0:06:35]} h6 {[%emt 0:04:28] Repels f4} 14. Nf3 {[%emt 0:01:05]} Qg6 {[%emt 0:01:16] White must now prevent ...e5. White is weak on the light squares} 15. Rg1 {[%emt 0:09:57]} (15. Nbd2 $1 $15) 15... Bd6 {[%emt 0:03:43]} (15... e5 $1 $19 {[%cal Re5d4]} 16. Kd1 Re8 17. Nxe5 Nxe5 18. dxe5 Bc5) 16. Nbd2 $1 {[%emt 0:04:11]} Rf8 {[%emt 0:01:17]} 17. Qe4 {[%emt 0:03:19]} Qf7 {[%emt 0:05:08][%cal Od6h2]} 18. Nf1 {[%emt 0:05:37]} b5 {[%emt 0:04:28]} (18... e5 $15 19. d5 Bxf1) 19. Be3 {[%emt 0:07:16]} (19. Qd3 $14) 19... b4 $11 {[%emt 0:01:56]} 20. N1d2 {[%emt 0:01:09]} bxc3 {[%emt 0:00:05]} 21. bxc3 {[%emt 0:00:01]} Ne7 {[%emt 0:04:21]} 22. Qc2 {[%emt 0:03:45]} Nd5 {[%emt 0:01:30]} 23. Ne4 {[%emt 0:06:18]} Qg6 {[%emt 0:07:44]} (23... Qf5 $15 {is more appropriate.} 24. Bd2 (24. c4 $2 Bxc4 25. Qxc4 Qxe4 $19) 24... Rc8) 24. Kd2 {[%emt 0:04:11]} (24. O-O-O $1 $11 Rc8 (24... Ba3+ 25. Kd2 $11) 25. Nc5 (25. Nxd6 $2 Rxc3 26. Rd2 Rxc2+ 27. Rxc2 Qd3 $19)) 24... Nxe3 $1 $17 {[%emt 0:00:40]} 25. fxe3 {[%emt 0:00:24] [#]} Bxh2 {[%emt 0:00:02][%mdl 512]} 26. Nxh2 {[%emt 0:02:07] Nf3 is the strong threat.} d5 {[%emt 0:00:27]} 27. Nf6+ {[%emt 0:02:26]} ({Don't go for} 27. Qa4 $2 Qxe4 28. Qxa6 Rf2+ $19) 27... Qxf6 {[%emt 0:00:06]} (27... gxf6 28. Qxg6#) 28. Nf3 {[%emt 0:00:22]} h5 $1 {[%emt 0:02:17]} 29. Rae1 {[%emt 0:07:34]} h4 {[%emt 0:03:54]} 30. Qa4 {[%emt 0:01:15]} Bc4 {[%emt 0:08:55]} 31. Ne5 {[%emt 0:01:20]} Qf2+ {[%emt 0:00:07]} 32. Kc1 {[%emt 0:00:26] [#]} Be2 {[%emt 0:00:04]} ({Much weaker is} 32... Bxa2 $6 33. Qa6 Rh6 34. Rgf1 $11) (32... Qxa2 33. Qxa2 Bxa2 34. Ng6 $14) (32... Rh5 $142 $1 {Hoping for ...Rb8.} 33. Nxc4 dxc4 34. Qxc4 Rb8) 33. Qc2 {[%emt 0:02:48] [#]} Bh5 {[%emt 0:03:33]} (33... Ba6 $1 $17 34. Qa4 Be2) 34. Nd3 {[%emt 0:03:27]} (34. Rgf1 $11 {remains equal.} Qxc2+ (34... Qxf1 35. Rxf1 Rxf1+ 36. Kb2 $15) 35. Kxc2) 34... Qg3 {[%emt 0:06:40]} 35. Nf4 {[%emt 0:01:41][%cal Og1f1] Against Bg6} Bg4 {[%emt 0:01:30][%cal Bh5g4,Bg4f5,Bf5e4][%mdl 32]} 36. Rgf1 {[%emt 0:01:08][%cal Bg1f1,Bf1f2,Bf2b2,Bb2b7][%mdl 32]} Bf5 {[%emt 0:06:28]} 37. Qf2 {[%emt 0:01:08]} Qxf2 {[%emt 0:02:11]} 38. Rxf2 {[%emt 0:00:01]} Be4 {[%emt 0:00:09]} 39. Rb2 {[%emt 0:02:07]} Rh6 {[%emt 0:00:25]} 40. Rg1 {[%emt 0:00:56]} Rhf6 {[%emt 0:02:43]} ({Black should play} 40... Re8 $17 {Strongly threatening ...e5.} 41. c4 dxc4) 41. g3 $11 {[%emt 0:00:42] The position is equal.} hxg3 {[%emt 0:04:55]} 42. Rxg3 {[%emt 0:00:02]} Rh6 {[%emt 0:00:41]} 43. Rb7 {[%emt 0:02:01][%csl LRa7,LRg7]} Rf7 {[%emt 0:00:01]} 44. Rb8+ {[%emt 0:00:30]} Rf8 {[%emt 0:00:45]} 45. Rb7 {[%emt 0:00:23][%csl LRa7,LRg7]} Rf7 {[%emt 0:00:17]} 46. Rb8+ {[%emt 0:00:09]} Rf8 {[%emt 0:00:26]} 47. Rb7 {[%emt 0:00:42][%csl LRa7,LRg7]} Rf7 {[%emt 0:02:26] White happily takes the draw.   Weighted Error Value: White=0.19 (very precise) /Black=0.16 (very precise) .  Mistake:       	White=5     	Black=6      Inaccurate:     	White=3     	Black=1      OK:         	White=14    	Black=17     Best:        	White=7     	Black=5      Strong:       	White=2     	Black=3      Brilliant:      	---       	Black=1} 1/2-1/2

[Event "Romanian-ch Youth Open U16 2024"]
[Site "Eforie Nord"]
[Date "2024.04.17"]
[Round "7.2"]
[White "Cnejev, Vladimir-Alexandru"]
[Black "Lucaci, Alin-Marian"]
[Result "1-0"]
[ECO "B51"]
[WhiteElo "2353"]
[BlackElo "1948"]
[Annotator "TA"]
[PlyCount "57"]
[EventDate "2024.04.10"]
[EventType "swiss"]
[EventCountry "ROU"]
[SourceTitle "playchess.com"]
[Source "ChessBase"]
[SourceQuality "1"]
[TimeControl "5400+30"]

{[%evp 16,57,26,22,29,43,37,27,27,26,18,33,59,59,50,45,53,45,34,37,37,36,48,12,53,50,52,50,58,43,160,153,152,112,190,205,191,196,498,507,497,489,466,458]} 1. e4 {[%emt 0:12:45]} c5 {[%emt 0:00:09]} 2. Nf3 {[%emt 0:00:07]} Nc6 {[%emt 0:00:04]} 3. Bb5 {[%emt 0:00:21]} d6 {[%emt 0:00:05]} 4. O-O {[%emt 0:00:10]} Bd7 {[%emt 0:00:03]} 5. Re1 {[%emt 0:00:10]} Nf6 {[%emt 0:00:06]} 6. c3 {[%emt 0:00:13][%cal Bc2c3,Bc3d4,Bd4d5][%mdl 32]} a6 {[%emt 0:00:08]} 7. Bf1 {[%emt 0:00:11]} Bg4 {[%emt 0:00:06]} 8. d4 {[%emt 0:00:05]} cxd4 {[%emt 0:00:05]} 9. cxd4 {[%emt 0:00:10]} e5 {[%emt 0:00:07]} 10. d5 {[%emt 0:00:06]} Nd4 {[%emt 0:00:05]} 11. Be3 {[%emt 0:00:09]} Nxf3+ {[%emt 0:00:12] White has an edge.} 12. gxf3 {[%emt 0:00:02]} Bd7 {[%emt 0:00:10]} 13. Nd2 {[%emt 0:00:07]} b5 {[%emt 0:00:06] [#] Wards off Nc4} 14. a4 $1 {[%emt 0:00:38]} Be7 {[%emt 0:00:10]} 15. axb5 {[%emt 0:00:31]} axb5 {[%emt 0:00:06]} 16. Rxa8 {[%emt 0:01:08]} Qxa8 {[%emt 0:00:07]} 17. Qa1 {[%emt 0:00:56]} O-O {[%emt 0:17:54]} 18. Rc1 {[%emt 0:00:14]} Qb8 {[%emt 0:05:23]} 19. Qa6 {[%emt 0:47:59]} Nh5 {[%emt 0:09:15]} 20. Qa7 {[%emt 0:04:21]} Qxa7 {[%emt 0:11:53]} 21. Bxa7 {[%emt 0:00:01]} Bd8 {[%emt 0:15:15] Dodges Rc7} 22. Be3 {[%emt 0:10:30]} g6 {[%emt 0:09:07]} ({Black should try} 22... h6 $14) 23. Ra1 $16 {[%emt 0:02:26] White is more active.} f5 {[%emt 0:04:34]} 24. Bh6 {[%emt 0:06:28] [#] Black must now prevent Ra7.} Ng7 {[%emt 0:01:19]} (24... Re8 $16 25. Ra7 Nf6) 25. Ra7 $18 {[%emt 0:00:50]} Rf7 {[%emt 0:00:34]} 26. Rb7 {[%emt 0:01:26]} Bc8 $2 {[%emt 0:15:06]} (26... Ba5 {is tougher.} 27. Nb3 (27. Bxb5 Bxb5 28. Rxb5 Bxd2 $18) 27... Bd8) 27. Rb8 {[%emt 0:03:08] White is clearly winning.} (27. Rxb5 Rb7 28. Rxb7 Bxb7 $18) 27... Rc7 {[%emt 0:00:08]} 28. Bxb5 {[%emt 0:01:40]} ({Less strong is} 28. Rxb5 Ba6 $18) 28... Kf7 {[%emt 0:03:05]} 29. Bc6 {[%emt 0:01:28] Weighted Error Value: White=0.05 (flawless) /Black=0.40.  Mistake:       	---       	Black=3      Inaccurate:     	White=1     	Black=2      OK:         	White=10    	Black=9      Best:        	White=2     	Black=1      Brilliant:      	White=1     	---} ({But not} 29. Nc4 Be7 30. Be3 Rb7 31. Rxb7 (31. Rxc8 Rxb5 $18) 31... Bxb7 $18) 1-0

[Event "Romanian-ch Youth Open U16 2024"]
[Site "Eforie Nord"]
[Date "2024.04.18"]
[Round "8.1"]
[White "Radu, David Cr."]
[Black "Cnejev, Vladimir-Alexandru"]
[Result "0-1"]
[ECO "C47"]
[WhiteElo "2237"]
[BlackElo "2353"]
[Annotator "TA"]
[PlyCount "38"]
[EventDate "2024.04.10"]
[EventType "swiss"]
[EventCountry "ROU"]
[SourceTitle "playchess.com"]
[Source "ChessBase"]
[SourceQuality "1"]
[TimeControl "5400+30"]

{[%evp 10,38,-21,-49,-38,-47,0,0,0,-21,27,-65,-79,-89,-79,-80,-97,-162,-161,-145,-164,-257,-243,-271,-258,-272,-256,-262,-264,-264,-256]} 1. e4 {[%emt 0:00:04]} e5 {[%emt 0:06:37]} 2. Nf3 {[%emt 0:00:10]} Nc6 {[%emt 0:00:07]} 3. Nc3 {[%emt 0:00:25]} Nf6 {[%emt 0:00:09]} 4. d4 {[%emt 0:00:05]} exd4 {[%emt 0:00:10]} 5. Nd5 {[%emt 0:00:08]} Nb4 {[%emt 0:00:57]} 6. Bc4 {[%emt 0:01:15]} Nbxd5 {[%emt 0:09:12]} 7. exd5 {[%emt 0:00:20]} Qe7+ {[%emt 0:09:39]} (7... Bb4+ $15 {was preferrable.} 8. Bd2 Qe7+ 9. Qe2 Bxd2+ 10. Kxd2 Qxe2+ 11. Kxe2 O-O) 8. Kf1 $1 $11 {[%emt 0:04:54][%cal Oc1g5]} b5 {[%emt 0:07:59] The position is equal.} 9. Bb3 {[%emt 0:39:52][%cal Oc1f4] Bf4! is the strong threat.} Bb7 {[%emt 0:13:46]} (9... a5 $142 10. a4 bxa4 11. Rxa4 Ba6+ 12. Kg1 d3) 10. Bf4 {[%emt 0:06:03]} ({White should play} 10. Qxd4 $11 Qc5 11. Bg5) 10... Nxd5 $15 {[%emt 0:08:27]} 11. Bg3 {[%emt 0:10:48]} O-O-O {[%emt 0:11:12]} 12. a4 {[%emt 0:08:46]} Qe4 {[%emt 0:09:47]} 13. Qd2 {[%emt 0:04:05]} (13. Qxd4 $17 {was called for.} Qxd4 14. Nxd4) 13... bxa4 $19 {[%emt 0:05:00]} 14. Rxa4 {[%emt 0:07:31]} Bc5 {[%emt 0:00:52]} 15. Be5 {[%emt 0:04:04]} (15. Nxd4 $142 Rhe8 16. Nb5) 15... Rhe8 {[%emt 0:04:37]} 16. Bxd4 {[%emt 0:01:17] [#]} Nb6 $1 {[%emt 0:01:01] Black has a decisive advantage.} ({But not} 16... Bxd4 $2 17. Rxd4 Qg6 18. Bxd5 $18) 17. Ra1 {[%emt 0:01:05]} Bxd4 {[%emt 0:00:39]} 18. Qxd4 {[%emt 0:00:02] [#]} Qe2+ {[%emt 0:00:37]} 19. Kg1 {[%emt 0:00:03]} Bxf3 {[%emt 0:00:16] Weighted Error Value: White=0.35/Black=0.07 (flawless) .  Mistake:       	White=3     	Black=2      OK:         	White=1     	Black=6      Best:        	---       	Black=1      Strong:       	White=1     	Black=1} 0-1

[Event "Romanian-ch Youth Open U16 2024"]
[Site "Eforie Nord"]
[Date "2024.04.18"]
[Round "8.2"]
[White "Magold, Filip"]
[Black "Tamas, Christian-Arrydan"]
[Result "1-0"]
[ECO "E66"]
[WhiteElo "2408"]
[BlackElo "2054"]
[Annotator "TA"]
[PlyCount "101"]
[EventDate "2024.04.10"]
[EventType "swiss"]
[EventCountry "ROU"]
[SourceTitle "playchess.com"]
[Source "ChessBase"]
[SourceQuality "1"]
[TimeControl "5400+30"]

{[%evp 17,100,-2,5,0,7,3,-8,0,0,-21,-34,-56,-65,-63,-55,-60,-43,-45,-24,-43,-42,-18,106,104,104,97,78,84,89,92,77,93,85,80,93,72,72,72,172,8,6,8,201,206,216,210,213,208,195,192,311,307,319,329,366,346,357,345,708,742,739,714,693,714,626,433,470,437,722,689,590,576,937,937,616,502,1221,1247,1153,1305,1343,1260,1156,1129,1693]} 1. d4 {[%emt 0:00:18]} Nf6 {[%emt 0:00:22]} 2. c4 {[%emt 0:00:11]} g6 {[%emt 0:00:04]} 3. Nf3 {[%emt 0:00:02]} Bg7 {[%emt 0:00:09]} 4. g3 {[%emt 0:00:03]} O-O {[%emt 0:00:24]} 5. Bg2 {[%emt 0:00:01]} d6 {[%emt 0:00:14]} 6. O-O {[%emt 0:00:07]} c5 {[%emt 0:00:16]} 7. Nc3 {[%emt 0:00:09]} Nc6 {[%emt 0:00:06]} 8. d5 {[%emt 0:00:02]} Na5 {[%emt 0:00:10]} 9. Nd2 {[%emt 0:00:03]} e6 {[%emt 0:01:06]} 10. Qc2 {[%emt 0:04:02]} Re8 {[%emt 0:02:29]} 11. Rb1 {[%emt 0:15:40]} exd5 {[%emt 0:01:48]} 12. cxd5 {[%emt 0:00:04] The position is equal.} Rb8 {[%emt 0:06:31]} 13. e4 {[%emt 0:05:04]} b5 {[%emt 0:01:06]} 14. b4 {[%emt 0:01:37]} cxb4 {[%emt 0:02:40]} 15. Rxb4 {[%emt 0:00:30]} Bd7 {[%emt 0:03:25]} 16. Bb2 {[%emt 0:11:31]} Qc7 {[%emt 0:06:25]} 17. Rc1 {[%emt 0:03:13]} Qc5 {[%emt 0:02:10]} 18. a3 {[%emt 0:01:02]} Ng4 {[%emt 0:06:25]} 19. Nd1 {[%emt 0:01:21]} Ne5 {[%emt 0:02:10] [#]} (19... Qxc2 $11 {remains equal.} 20. Rxc2 Rec8) 20. Qb1 $1 $16 {[%emt 0:01:54]} Qb6 {[%emt 0:19:17]} 21. Bd4 {[%emt 0:01:53]} Qd8 {[%emt 0:02:40]} 22. Bxa7 {[%emt 0:04:08]} Ra8 {[%emt 0:00:17]} 23. Bd4 {[%emt 0:00:35]} Nac4 {[%emt 0:03:03]} 24. Nxc4 {[%emt 0:03:33]} bxc4 {[%emt 0:00:08]} 25. Bxe5 {[%emt 0:01:05]} Bxe5 {[%emt 0:00:10]} 26. Ne3 {[%emt 0:01:31]} c3 {[%emt 0:08:31][%cal Od8f6]} 27. Nc4 $36 {[%emt 0:04:49][%mdl 2048] Nxe5 would now be deadly. White is on the roll.} Bd4 {[%emt 0:01:52]} (27... Qf6 $16) 28. Nb6 $2 {[%emt 0:01:22]} (28. Nxd6 $18 Bxf2+ 29. Kxf2 Qf6+ 30. Kg1 Qxd6 31. Rxc3) 28... Bxb6 $11 {[%emt 0:01:00]} (28... Qf6 $6 29. Nxd7 (29. Rxd4 Qxd4 30. Nxd7 Red8 $16) 29... Qxf2+ (29... Bxf2+ $2 30. Kf1 $18) 30. Kh1 Rxa3 31. Rb8 $16) 29. Rxb6 {[%emt 0:00:02]} Qc7 {[%emt 0:04:33] A mistake that costs the game.} (29... Rxa3 $11 30. Rxd6 Qc7) 30. Rb7 $18 {[%emt 0:03:04]} ({Stronger than} 30. Qb4 Rab8 $17) 30... Qc8 {[%emt 0:00:13][%cal Od7a4]} 31. Rb3 {[%emt 0:03:45]} Rb8 {[%emt 0:02:45]} 32. Qc2 {[%emt 0:00:50]} Rxb3 {[%emt 0:04:30]} 33. Qxb3 {[%emt 0:00:09]} Bh3 {[%emt 0:01:40]} (33... c2 $142 34. Rxc2 (34. Qxc2 Qxc2 35. Rxc2 f5 $18) 34... Qb8) 34. Rxc3 {[%emt 0:02:32]} Qg4 {[%emt 0:00:33]} 35. f3 {[%emt 0:03:45]} Qh5 {[%emt 0:00:06]} 36. Bxh3 {[%emt 0:04:06]} Qxh3 {[%emt 0:00:08][%mdl 4096] Endgame. KQR-KQR} 37. Rc7 {[%emt 0:00:11]} f5 $2 {[%emt 0:02:07]} (37... Qh6 38. Qc3 Qg7) 38. Qc3 {[%emt 0:00:35] White is clearly winning.} Qh6 {[%emt 0:01:15] Repels Qg7+} 39. Rc8 {[%emt 0:01:37]} Qf8 {[%emt 0:01:46]} 40. Rxe8 {[%emt 0:00:12]} Qxe8 {[%emt 0:00:05]} 41. exf5 {[%emt 0:24:22]} gxf5 {[%emt 0:00:07] KQ-KQ} 42. Qd2 {[%emt 0:00:00] [#] Hoping for Qg5+.} Qe5 {[%emt 0:00:13]} (42... Kf7 $142 43. Qd3 Qe1+ 44. Kg2 Kg6) 43. Kg2 {[%emt 0:00:00]} Kf7 {[%emt 0:00:19]} 44. Qa2 {[%emt 0:00:00] a4 is the strong threat.} h5 {[%emt 0:00:17][%cal Bh7h5,Bh5h4][%mdl 32]} 45. a4 {[%emt 0:00:00]} h4 {[%emt 0:00:08]} 46. Qd2 {[%emt 0:00:00]} Qh8 {[%emt 0:01:23]} (46... hxg3 $142 47. hxg3 Qg7) 47. g4 {[%emt 0:00:00]} Qe5 {[%emt 0:03:20]} 48. Kh3 {[%emt 0:00:00]} Qa1 {[%emt 0:00:23]} 49. Qe2 {[%emt 0:00:00]} Kf8 {[%emt 0:01:24]} 50. Kxh4 {[%emt 0:00:00]} Qxa4 {[%emt 0:00:44]} 51. Qe6 {[%emt 0:00:00] Weighted Error Value: White=0.19 (very precise) /Black=0.31.  Loses game:     	---       	Black=1      Missed win:     	White=1     	---        Mistake:       	---       	Black=5      OK:         	White=15    	Black=15     Best:        	White=2     	Black=2      Strong:       	White=1     	---} 1-0

[Event "Romanian-ch Youth Open U16 2024"]
[Site "Eforie Nord"]
[Date "2024.04.19"]
[Round "9.1"]
[White "Lucaci, Alin-Marian"]
[Black "Magold, Filip"]
[Result "0-1"]
[ECO "A41"]
[WhiteElo "1948"]
[BlackElo "2408"]
[Annotator "TA"]
[PlyCount "68"]
[EventDate "2024.04.10"]
[EventType "swiss"]
[EventCountry "ROU"]
[SourceTitle "playchess.com"]
[Source "ChessBase"]
[SourceQuality "1"]
[TimeControl "5400+30"]

{[%evp 9,68,49,43,45,44,37,44,49,45,40,47,47,53,39,50,43,52,13,31,0,21,-18,0,0,10,-40,-27,-97,-141,-273,-256,-289,-255,-293,-266,-310,-200,-244,-159,-152,-114,-91,-52,-707,-704,-722,-708,-802,-772,-958,-963,-1201,-1222,-1491,-1498,-1463,-1421,-1652,-1579,-5410,-2605]} 1. d4 {[%emt 0:00:03]} d6 {[%emt 0:00:18]} 2. Nf3 {[%emt 0:00:06]} Bg4 {[%emt 0:00:05]} 3. c4 {[%emt 0:04:50]} Nd7 {[%emt 0:02:13][%cal Bb8d7,Bd7e5,Be5f3][%mdl 32]} 4. e4 {[%emt 0:06:22]} c5 {[%emt 0:05:22]} 5. d5 {[%emt 0:00:28]} Ne5 {[%emt 0:00:46]} 6. Be2 {[%emt 0:04:45] [#] Nxe5 would now be deadly.} Nxf3+ {[%emt 0:01:26]} 7. Bxf3 {[%emt 0:01:00]} Bxf3 {[%emt 0:00:07]} 8. Qxf3 {[%emt 0:00:05] White is slightly better.} Nf6 {[%emt 0:00:11]} 9. O-O {[%emt 0:00:24]} g6 {[%emt 0:00:01]} 10. Nc3 {[%emt 0:05:21][%cal Oe4e5]} Bg7 {[%emt 0:01:33]} 11. Bg5 {[%emt 0:03:09][%cal Oe4e5]} O-O {[%emt 0:00:31]} 12. Qe2 {[%emt 0:03:15]} Re8 {[%emt 0:00:55]} 13. Rad1 {[%emt 0:02:11]} Nd7 {[%emt 0:00:21]} 14. Kh1 {[%emt 0:01:29]} Qa5 {[%emt 0:00:33]} 15. Rd3 {[%emt 0:01:13]} a6 {[%emt 0:02:24]} 16. f4 {[%emt 0:14:00][%cal Oe4e5]} b5 {[%emt 0:02:51]} 17. Qg4 {[%emt 0:07:55]} (17. e5 $1 $11 f6 18. Bh4 (18. e6 Nb6 $11)) 17... Nf6 {[%emt 0:16:13]} (17... bxc4 $6 18. Rh3 Qc7 19. Qh4 $16) 18. Qh4 {[%emt 0:10:29]} (18. Bxf6 $2 exf6 19. a3 b4 $19 (19... bxc4 20. Rdf3 $17)) (18. Qe2 $1 $11) 18... b4 $17 {[%emt 0:00:07]} 19. Nd1 {[%emt 0:02:56]} (19. e5 $17 bxc3 20. exf6 exf6 21. Bxf6) 19... Qxa2 $19 {[%emt 0:02:18]} (19... Nxe4 20. Rh3 h5 (20... Qxa2 21. Qxh7+ Kf8 22. Bh6 e6 23. Qxg7+ Ke7 24. Bg5+ Nxg5 25. fxg5) 21. g4 (21. f5 Nxg5 22. Qxg5 Rf8 $11) 21... Qxa2 22. gxh5 Qxc4 23. Ne3 $14) 20. Rh3 {[%emt 0:04:38]} Qxc4 {[%emt 0:03:26]} 21. Re1 {[%emt 0:05:57]} h5 {[%emt 0:03:15]} (21... Nxe4 $2 22. Qxh7+ Kf8 23. Bh6 $18) 22. Nf2 {[%emt 0:05:21]} Qd4 {[%emt 0:16:00]} 23. g4 {[%emt 0:02:48]} e6 {[%emt 0:06:43]} (23... Qxb2 24. gxh5 Nxh5 25. Nd3 $17) 24. gxh5 {[%emt 0:03:38]} Nxh5 {[%emt 0:01:05]} 25. Rg1 {[%emt 0:02:32]} exd5 {[%emt 0:01:05]} 26. Bh6 $2 {[%emt 0:05:43][%mdl 8192] This move loses the game for White.} Bxh6 {[%emt 0:02:48] Black is clearly winning.} 27. Qxh5 {[%emt 0:00:18]} Bg7 {[%emt 0:00:10]} ({Worse is} 27... Qxf2 28. Qxh6 Qd4 29. e5 Qe4+ 30. Rg2 Qe1+ 31. Rg1 Qe4+ 32. Rg2 Qb1+ 33. Rg1 Qe4+ $11) 28. Qh4 {[%emt 0:01:39]} dxe4 {[%emt 0:01:28][%cal Oe4e3] Strongly threatening ...e3!} 29. Ng4 {[%emt 0:00:06]} e3 {[%emt 0:01:03]} (29... Qxb2 30. f5 Re5 (30... gxf5 31. Nf6+ Kf8 32. Nd7+ Kg8 33. Qh8#) 31. fxg6 $18) 30. Nh6+ {[%emt 0:01:11]} Kf8 {[%emt 0:00:16]} 31. Re1 {[%emt 0:01:15]} e2 {[%emt 0:00:26]} 32. Ng4 {[%emt 0:00:41]} Qxf4 {[%emt 0:00:15] ( -> ...Qf1+)} 33. Rg3 {[%emt 0:00:32] [#]} Re3 $3 {[%emt 0:01:40][%mdl 512]} 34. Rg2 {[%emt 0:00:14]} (34. Kg2 Rxg3+) 34... Rae8 {[%emt 0:00:18] Weighted Error Value: White=1.06/Black=0.12 (very precise) .  Loses game:     	White=1     	---        Mistake:       	White=3     	---        Inaccurate:     	White=3     	Black=3      OK:         	White=3     	Black=5      Best:        	White=1     	Black=2} 0-1